fUSD/lending_fUSD_20250226
["ID","MTS","AMOUNT","RATE_DAILY","PERIOD"]
[354548893,1740570647280,-611.43778785,0.00041095,14]
[354548894,1740570647290,-500.0,0.00041095,14]
[354548895,1740570647299,-500.0,0.00041095,14]
[354548896,1740570647309,-502.46835175,0.00041095,14]
[354548897,1740570647323,-500.0,0.00041095,14]
[354548898,1740570647332,-500.0,0.00041095,14]
[354548899,1740570647342,-418.15574174,0.00041095,14]
[354548900,1740570647352,-570.65666066,0.00041095,2]
[354548901,1740570647362,-500.44786881,0.00041095,3]
[354548902,1740570647372,-500.0,0.00041095,14]
[354548903,1740570647381,-500.0,0.00041095,14]
[354548904,1740570647392,-500.0,0.00041095,14]
[354548905,1740570647402,-500.0,0.00041095,14]
[354548906,1740570647412,-480.7430372,0.00041095,14]
[354548907,1740570647422,-500.0,0.00041095,14]
[354548908,1740570647432,-503.50483394,0.00041095,14]
[354548909,1740570647442,-500.0,0.00041095,14]
[354548910,1740570647452,-1750.01,0.00041095,14]
[354548911,1740570647461,-500.0,0.00041095,14]
[354548912,1740570647471,-596.08,0.00041095,14]
[354548913,1740570647481,-500.0,0.00041095,14]
[354548914,1740570647490,-632.84,0.00041095,14]
[354548915,1740570647500,-500.0,0.00041095,14]
[354548916,1740570647509,-1193.52,0.00041095,14]
[354548917,1740570647519,-1084.09,0.00041095,14]
[354548918,1740570647528,-752.62,0.00041095,14]
[354548919,1740570647538,-500.0,0.00041095,14]
[354548920,1740570647547,-839.62,0.00041095,14]
[354548921,1740570647557,-968.05,0.00041095,14]
[354548922,1740570647566,-500.0,0.00041095,14]
[354548923,1740570647576,-500.0,0.00041095,14]
[354548924,1740570647585,-386.3304745,0.00041095,14]
[354548925,1740570647597,-1162.46,0.00041095,14]
[354548926,1740570647607,-500.0,0.00041095,14]
[354548927,1740570647617,-1126.68,0.00041095,14]
[354548928,1740570647626,-501.23331816,0.00041095,14]
[354548929,1740570647635,-500.0,0.00041095,14]
[354548930,1740570647645,-1412.3,0.00041095,14]
[354548931,1740570647655,-500.0,0.00041095,14]
[354548932,1740570647664,-500.0,0.00041095,14]
[354548933,1740570647674,-500.0,0.00041095,14]
[354548934,1740570647683,-2079.9,0.00041095,14]
[354548935,1740570647692,-1070.52,0.00041095,14]
[354548936,1740570647702,-500.0,0.00041095,14]
[354548937,1740570647712,-500.0,0.00041095,14]
[354548938,1740570647736,-764.59,0.00041095,14]
[354548939,1740570647745,-500.0,0.00041095,14]
[354548940,1740570647755,-500.0,0.00041095,14]
[354548941,1740570647765,-545.71,0.00041095,14]
[354548942,1740570647776,-500.0,0.00041095,14]
[354548943,1740570647786,-500.0,0.00041095,14]
[354548944,1740570647795,-500.0,0.00041095,14]
[354548945,1740570647804,-707.99,0.00041095,14]
[354548946,1740570647815,-500.0,0.00041095,14]
[354548947,1740570647825,-500.0,0.00041095,14]
[354548948,1740570647835,-500.0,0.00041095,14]
[354548949,1740570647844,-500.0,0.00041095,14]
[354548950,1740570647854,-500.0,0.00041095,14]
[354548951,1740570647864,-500.0,0.00041095,14]
[354548952,1740570647874,-500.0,0.00041095,14]
[354548953,1740570647883,-500.0,0.00041095,14]
[354548954,1740570647892,-988.57,0.00041095,14]
[354548955,1740570647902,-941.95,0.00041095,14]
[354548956,1740570647911,-622.12,0.00041095,14]
[354548957,1740570647921,-542.34935467,0.00041095,14]
[354548958,1740570647931,-500.0,0.00041095,14]
[354548959,1740570647940,-500.0,0.00041095,14]
[354548960,1740570647949,-500.0,0.00041095,14]
[354548961,1740570647959,-794.05,0.00041095,14]
[354548962,1740570647968,-589.87,0.00041095,14]
[354548963,1740570647977,-500.0,0.00041095,14]
[354548964,1740570647986,-500.0,0.00041095,14]
[354548965,1740570647995,-1528.74,0.00041095,14]
[354548966,1740570648004,-500.0,0.00041095,14]
[354548967,1740570648013,-500.0,0.00041095,14]
[354548968,1740570648023,-500.0,0.00041095,14]
[354548969,1740570648031,-500.0,0.00041095,14]
[354548970,1740570648041,-500.0,0.00041095,14]
[354548971,1740570648052,-500.0,0.00041095,14]
[354548972,1740570648061,-500.0,0.00041095,14]
[354548973,1740570648070,-500.0,0.00041095,14]
[354548974,1740570648080,-500.0,0.00041095,14]
[354548975,1740570648089,-500.0,0.00041095,14]
[354548976,1740570648098,-521.16971875,0.00041095,14]
[354548977,1740570648108,-820.11,0.00041095,14]
[354548978,1740570648117,-703.54,0.00041095,14]
[354548979,1740570648127,-1044.67,0.00041095,14]
[354548980,1740570648136,-500.0,0.00041095,14]
[354548981,1740570648145,-500.0,0.00041095,14]
[354548982,1740570648154,-500.0,0.00041095,14]
[354548983,1740570648163,-841.5,0.00041095,14]
[354548984,1740570648173,-500.0,0.00041095,14]
[354548985,1740570648183,-823.88,0.00041095,14]
[354548986,1740570648192,-967.59,0.00041095,14]
[354548987,1740570648201,-1004.01,0.00041095,14]
[354548988,1740570648210,-500.0,0.00041095,120]
[354548989,1740570648219,-500.0,0.00041095,14]
[354548990,1740570648228,-500.0,0.00041095,14]
[354548991,1740570648238,-500.0,0.00041095,14]
[354548992,1740570648247,-500.0,0.00041095,14]
[354548993,1740570648256,-238.32954787,0.00041095,14]
[354548994,1740570648266,-585.64300686,0.00041095,14]
[354548995,1740570648275,-500.0,0.00041095,14]
[354548996,1740570648284,-1000.0,0.00041095,14]
[354548997,1740570648293,-1628.96,0.00041095,14]
[354548998,1740570648303,-500.0,0.00041095,14]
[354548999,1740570648313,-500.0,0.00041095,14]
[354549000,1740570648324,-500.0,0.00041095,14]
[354549001,1740570648334,-500.0,0.00041095,14]
[354549002,1740570648344,-800.59,0.00041095,14]
[354549003,1740570648354,-500.0,0.00041095,14]
[354549004,1740570648364,-554.06,0.00041095,14]
[354549005,1740570648605,-500.0,0.00041095,14]
[354549006,1740570648616,-500.0,0.00041095,14]
[354549007,1740570648626,-500.0,0.00041095,14]
[354549008,1740570648635,-2197.51,0.00041095,14]
[354549009,1740570648644,-500.0,0.00041095,14]
[354549010,1740570648654,-500.0,0.00041095,14]
[354549011,1740570648663,-501.99419004,0.00041095,14]
[354549012,1740570648672,-500.0,0.00041095,14]
[354549013,1740570648682,-500.0,0.00041095,14]
[354549014,1740570648691,-500.0,0.00041095,14]
[354549015,1740570648701,-500.0,0.00041095,14]
[354549016,1740570648710,-500.0,0.00041095,14]
[354549017,1740570648720,-500.0,0.00041095,14]
[354549018,1740570648729,-501.45846162,0.00041095,14]
[354549019,1740570648738,-500.0,0.00041095,14]
[354549020,1740570648747,-576.09,0.00041095,14]
[354549021,1740570648757,-500.0,0.00041095,14]
[354549022,1740570648766,-500.0,0.00041095,14]
[354549023,1740570648777,-500.0,0.00041095,14]
[354549024,1740570648787,-500.0,0.00041095,14]
[354549025,1740570648796,-901.93,0.00041095,14]
[354549026,1740570648806,-787.05,0.00041095,14]
[354549027,1740570648815,-500.0,0.00041095,14]
[354549028,1740570648823,-933.65,0.00041095,14]
[354549029,1740570648833,-500.0,0.00041095,14]
[354549030,1740570648842,-500.0,0.00041095,14]
[354549031,1740570648851,-879.56,0.00041095,14]
[354549032,1740570648860,-1810.61,0.00041095,14]
[354549033,1740570648869,-500.0,0.00041095,14]
[354549034,1740570648879,-1515.03,0.00041095,14]
[354549035,1740570648888,-1652.27,0.00041095,14]
[354549036,1740570648898,-960.36,0.00041095,14]
[354549037,1740570648907,-500.0,0.00041095,14]
[354549038,1740570648915,-793.89,0.00041095,14]
[354549039,1740570648925,-500.0,0.00041095,14]
[354549040,1740570648934,-500.0,0.00041095,14]
[354549041,1740570648943,-1090.73,0.00041095,14]
[354549042,1740570648952,-500.0,0.00041095,2]
[354549043,1740570648961,-500.0,0.00041095,2]
[354549044,1740570648971,-500.0,0.00041095,2]
[354549045,1740570648981,-500.0,0.00041095,2]
[354549046,1740570648990,-500.0,0.00041095,2]
[354549047,1740570648999,-500.0,0.00041095,2]
[354549048,1740570649008,-500.0,0.00041095,2]
[354549049,1740570649018,-500.0,0.00041095,14]
[354549050,1740570649027,-500.0,0.00041095,2]
[354549051,1740570649036,-507.24401618,0.00041095,2]
[354549052,1740570649045,-617.08,0.00041095,14]
[354549053,1740570649054,-500.0,0.00041095,14]
[354549054,1740570649064,-806.64,0.00041095,14]
[354549055,1740570649074,-500.0,0.00041095,14]
[354549056,1740570649083,-500.0,0.00041095,14]
[354549057,1740570649093,-500.0,0.00041095,14]
[354549058,1740570649102,-500.0,0.00041095,14]
[354549059,1740570649112,-500.0,0.00041095,14]
[354549060,1740570649122,-502.23,0.00041095,14]
[354549061,1740570649131,-500.0,0.00041095,14]
[354549062,1740570649140,-500.0,0.00041095,14]
[354549063,1740570649150,-906.19,0.00041095,14]
[354549064,1740570649159,-500.0,0.00041095,14]
[354549065,1740570649169,-500.0,0.00041095,14]
[354549066,1740570649178,-500.0,0.00041095,14]
[354549067,1740570649188,-742.6,0.00041095,14]
[354549068,1740570649197,-500.0,0.00041095,14]
[354549069,1740570649207,-514.91,0.00041095,14]
[354549070,1740570649216,-796.33,0.00041095,14]
[354549071,1740570649225,-500.0,0.00041095,14]
[354549072,1740570649234,-500.0,0.00041095,14]
[354549073,1740570649244,-500.0,0.00041095,14]
[354549074,1740570649253,-500.0,0.00041095,14]
[354549075,1740570649262,-502.21058961,0.00041095,14]
[354549076,1740570649272,-500.0,0.00041095,14]
[354549077,1740570649281,-623.58,0.00041095,14]
[354549078,1740570649291,-500.0,0.00041095,14]
[354549079,1740570649300,-913.75,0.00041095,14]
[354549080,1740570649309,-500.0,0.00041095,14]
[354549081,1740570649323,-500.0,0.00041095,14]
[354549082,1740570649332,-752.16,0.00041095,14]
[354549083,1740570649342,-1534.92,0.00041095,14]
[354549084,1740570649351,-500.0,0.00041095,14]
[354549085,1740570649362,-500.0,0.00041095,14]
[354549086,1740570649372,-303.25803702,0.00041095,14]
[354549087,1740570649382,-500.0,0.00041095,14]
[354549088,1740570649391,-500.0,0.00041095,14]
[354549089,1740570649400,-500.0,0.00041095,14]
[354549090,1740570649411,-500.0,0.00041095,14]
[354549091,1740570649421,-500.0,0.00041095,14]
[354549092,1740570649430,-500.0,0.00041095,14]
[354549093,1740570649439,-500.0,0.00041095,14]
[354549094,1740570649448,-500.0,0.00041095,14]
[354549095,1740570649458,-500.0,0.00041095,30]
[354549096,1740570649467,-500.0,0.00041095,14]
[354549097,1740570649476,-500.0,0.00041095,14]
[354549098,1740570649486,-500.0,0.00041095,14]
[354549099,1740570649497,-500.0,0.00041095,14]
[354549100,1740570649507,-1108.15,0.00041095,14]
[354549101,1740570649516,-1405.88,0.00041095,14]
[354549102,1740570649526,-1850.63,0.00041095,14]
[354549103,1740570649535,-500.0,0.00041095,14]
[354549104,1740570649545,-500.0,0.00041095,14]
[354549105,1740570649555,-500.0,0.00041095,14]
[354549106,1740570649564,-500.0,0.00041095,14]
[354549107,1740570649573,-500.0,0.00041095,14]
[354549108,1740570649582,-500.0,0.00041095,14]
[354549109,1740570649592,-500.0,0.00041095,14]
[354549110,1740570649601,-506.40989492,0.00041095,14]
[354549111,1740570649610,-500.0,0.00041095,14]
[354549112,1740570649619,-500.0,0.00041095,14]
[354549113,1740570649629,-508.08184141,0.00041095,14]
[354549114,1740570649638,-500.0,0.00041095,14]
[354549115,1740570649647,-1686.34,0.00041095,14]
[354549116,1740570649656,-1284.79,0.00041095,14]
[354549117,1740570649665,-500.0,0.00041095,14]
[354549118,1740570649674,-219.41863273,0.00041095,14]
[354549119,1740570649683,-500.0,0.00041095,14]
[354549120,1740570649692,-1044.7,0.00041095,14]
[354549121,1740570649701,-500.0,0.00041095,14]
[354549122,1740570649710,-500.0,0.00041095,14]
[354549123,1740570649720,-500.0,0.00041095,14]
[354549124,1740570649729,-500.0,0.00041095,14]
[354549125,1740570649738,-500.0,0.00041095,14]
[354549126,1740570649747,-500.0,0.00041095,14]
[354549127,1740570649757,-1323.19,0.00041095,14]
[354549128,1740570649766,-1015.13,0.00041095,14]
[354549129,1740570649774,-1541.27,0.00041095,14]
[354549130,1740570649784,-500.0,0.00041095,14]
[354549131,1740570649793,-500.0,0.00041095,14]
[354549132,1740570649802,-500.0,0.00041095,14]
[354549133,1740570649811,-500.0,0.00041095,14]
[354549134,1740570649820,-500.0,0.00041095,14]
[354549135,1740570649829,-500.0,0.00041095,14]
[354549136,1740570649838,-500.0,0.00041095,14]
[354549137,1740570649847,-500.0,0.00041095,14]
[354549138,1740570649856,-1074.69,0.00041095,14]
[354549139,1740570649865,-500.0,0.00041095,14]
[354549140,1740570649874,-1451.78,0.00041095,14]
[354549141,1740570649883,-1271.15,0.00041095,14]
[354549142,1740570649892,-500.0,0.00041095,14]
[354549143,1740570649902,-500.0,0.00041095,14]
[354549144,1740570649911,-521.83874017,0.00041095,14]
[354549145,1740570649920,-500.0,0.00041095,14]
[354549146,1740570649929,-500.0,0.00041095,14]
[354549147,1740570649938,-500.0,0.00041095,14]
[354549148,1740570649947,-500.0,0.00041095,14]
[354549149,1740570649956,-984.19,0.00041095,14]
[354549150,1740570649965,-597.47,0.00041095,14]
[354549151,1740570649975,-264.88411276,0.00041095,14]
[354549152,1740570649984,-500.0,0.00041095,14]
[354549153,1740570649993,-500.0,0.00041095,14]
[354549154,1740570650001,-755.84,0.00041095,14]
[354549155,1740570650010,-500.0,0.00041095,14]
[354549156,1740570650019,-500.0,0.00041095,14]
[354549157,1740570650029,-500.0,0.00041095,14]
[354549158,1740570650038,-816.32,0.00041095,14]
[354549159,1740570650047,-500.0,0.00041095,14]
[354549160,1740570650058,-500.0,0.00041095,14]
[354549161,1740570650067,-613.84,0.00041095,14]
[354549162,1740570650076,-500.0,0.00041095,14]
[354549163,1740570650085,-500.0,0.00041095,14]
[354549164,1740570650094,-1694.82,0.00041095,14]
[354549165,1740570650103,-500.0,0.00041095,14]
[354549166,1740570650112,-1477.9,0.00041095,14]
[354549167,1740570650121,-782.79,0.00041095,14]
[354549168,1740570650131,-500.0,0.00041095,14]
[354549169,1740570650140,-708.58,0.00041095,14]
[354549170,1740570650148,-1224.92,0.00041095,14]
[354549171,1740570650157,-500.0,0.00041095,14]
[354549172,1740570650167,-500.0,0.00041095,14]
[354549173,1740570650176,-500.0,0.00041095,14]
[354549174,1740570650185,-1337.13,0.00041095,14]
[354549175,1740570650194,-500.0,0.00041095,14]
[354549176,1740570650203,-500.0,0.00041095,14]
[354549177,1740570650213,-1180.46,0.00041095,14]
[354549178,1740570650223,-500.0,0.00041095,14]
[354549179,1740570650232,-500.0,0.00041095,14]
[354549180,1740570650241,-500.0,0.00041095,14]
[354549181,1740570650250,-500.0,0.00041095,14]
[354549182,1740570650259,-500.0,0.00041095,14]
[354549183,1740570650268,-500.0,0.00041095,14]
[354549184,1740570650277,-1286.6,0.00041095,14]
[354549185,1740570650286,-500.0,0.00041095,14]
[354549186,1740570650296,-500.0,0.00041095,14]
[354549187,1740570650305,-839.38,0.00041095,14]
[354549188,1740570650315,-1720.53,0.00041095,14]
[354549189,1740570650327,-500.0,0.00041095,14]
[354549190,1740570650336,-1289.1,0.00041095,14]
[354549191,1740570650345,-1212.86,0.00041095,14]
[354549192,1740570650354,-1588.14,0.00041095,14]
[354549193,1740570650363,-681.0,0.00041095,14]
[354549194,1740570650374,-873.4,0.00041095,14]
[354549195,1740570650383,-501.22436758,0.00041095,14]
[354549196,1740570650392,-500.0,0.00041095,14]
[354549197,1740570650407,-500.0,0.00041095,14]
[354549198,1740570650416,-2086.46,0.00041095,14]
[354549199,1740570650425,-500.0,0.00041095,14]
[354549200,1740570650435,-500.0,0.00041095,14]
[354549201,1740570650444,-1213.71,0.00041095,14]
[354549202,1740570650454,-1501.31,0.00041095,14]
[354549203,1740570650463,-767.11,0.00041095,14]
[354549204,1740570650472,-1030.27,0.00041095,14]
[354549205,1740570650482,-1443.72,0.00041095,14]
[354549206,1740570650491,-1067.71,0.00041095,14]
[354549207,1740570650501,-500.0,0.00041095,14]
[354549208,1740570650510,-732.59,0.00041095,14]
[354549209,1740570650520,-1655.6,0.00041095,14]
[354549210,1740570650529,-500.0,0.00041095,14]
[354549211,1740570650539,-1224.58,0.00041095,14]
[354549212,1740570650548,-500.0,0.00041095,14]
[354549213,1740570650557,-599.58,0.00041095,14]
[354549214,1740570650567,-1721.68,0.00041095,14]
[354549215,1740570650575,-500.0,0.00041095,14]
[354549216,1740570650585,-500.0,0.00041095,14]
[354549217,1740570650595,-2483.81,0.00041095,14]
[354549218,1740570650605,-718.89,0.00041095,14]
[354549219,1740570650614,-889.13,0.00041095,14]
[354549220,1740570650623,-1882.67,0.00041095,14]
[354549221,1740570650632,-500.0,0.00041095,14]
[354549222,1740570650642,-617.21,0.00041095,14]
[354549223,1740570650651,-500.0,0.00041095,14]
[354549224,1740570650659,-2535.0,0.00041095,14]
[354549225,1740570650669,-469.41542728,0.00041095,14]
[354549226,1740570650678,-688.1,0.00041095,14]
[354549227,1740570650687,-500.0,0.00041095,14]
[354549228,1740570650696,-626.89,0.00041095,14]
[354549229,1740570650706,-1094.65,0.00041095,14]
[354549230,1740570650715,-500.0,0.00041095,14]
[354549231,1740570650731,-1163.65,0.00041095,14]
[354549232,1740570650740,-520.52,0.00041095,14]
[354549233,1740570650749,-1900.16,0.00041095,14]
[354549234,1740570650758,-1107.12,0.00041095,14]
[354549235,1740570650767,-641.67,0.00041095,14]
[354549236,1740570650780,-842.49,0.00041095,14]
[354549237,1740570650789,-937.96,0.00041095,14]
[354549238,1740570650799,-1563.8,0.00041095,14]
[354549239,1740570650811,-1170.27,0.00041095,14]
[354549240,1740570650821,-2292.15,0.00041095,14]
[354549241,1740570650830,-500.0,0.00041095,14]
[354549242,1740570650839,-500.0,0.00041095,14]
[354549243,1740570650849,-500.0,0.00041095,14]
[354549244,1740570650858,-576.22,0.00041095,14]
[354549245,1740570650868,-500.0,0.00041095,14]
[354549246,1740570650878,-500.0,0.00041095,14]
[354549247,1740570650888,-500.0,0.00041095,14]
[354549248,1740570650897,-500.0,0.00041095,14]
[354549249,1740570650907,-3002.33,0.00041095,14]
[354549250,1740570650916,-500.0,0.00041095,14]
[354549251,1740570650925,-3334.54,0.00041095,14]
[354549252,1740570650935,-807.87,0.00041095,14]
[354549253,1740570650945,-1599.2,0.00041095,14]
[354549254,1740570650954,-500.0,0.00041095,14]
[354549255,1740570650963,-701.22,0.00041095,14]
[354549256,1740570650972,-1392.23,0.00041095,14]
[354549257,1740570650982,-735.84,0.00041095,14]
[354549258,1740570650992,-184.1262271,0.00041095,14]
[354549259,1740570651001,-500.0,0.00041095,14]
[354549260,1740570651011,-1047.16,0.00041095,14]
[354549261,1740570651020,-500.0,0.00041095,14]
[354549262,1740570651029,-500.0,0.00041095,14]
[354549263,1740570651038,-792.93,0.00041095,14]
[354549264,1740570651047,-2174.48,0.00041095,14]
[354549265,1740570651057,-1494.65,0.00041095,14]
[354549266,1740570651066,-500.0,0.00041095,14]
[354549267,1740570651075,-500.0,0.00041095,14]
[354549268,1740570651084,-500.0,0.00041095,14]
[354549269,1740570651093,-976.41,0.00041095,14]
[354549270,1740570651102,-1811.17,0.00041095,14]
[354549271,1740570651111,-831.96,0.00041095,14]
[354549272,1740570651121,-535.06419881,0.00041095,14]
[354549273,1740570651130,-500.0,0.00041095,14]
[354549274,1740570651139,-1060.03,0.00041095,14]
[354549275,1740570651148,-963.35,0.00041095,14]
[354549276,1740570651158,-500.0,0.00041095,14]
[354549277,1740570651167,-2680.35,0.00041095,14]
[354549278,1740570651176,-500.0,0.00041095,14]
[354549279,1740570651185,-1790.46,0.00041095,14]
[354549280,1740570651194,-500.0,0.00041095,14]
[354549281,1740570651203,-500.0,0.00041095,14]
[354549282,1740570651212,-500.0,0.00041095,14]
[354549283,1740570651224,-1443.78,0.00041095,14]
[354549284,1740570651234,-632.6,0.00041095,14]
[354549285,1740570651243,-1229.39,0.00041095,14]
[354549286,1740570651253,-500.0,0.00041095,14]
[354549287,1740570651264,-953.22,0.00041095,14]
[354549288,1740570651273,-1689.99,0.00041095,14]
[354549289,1740570651282,-2358.02,0.00041095,14]
[354549290,1740570651291,-1377.29,0.00041095,14]
[354549291,1740570651300,-500.0,0.00041095,14]
[354549292,1740570651309,-1373.57,0.00041095,14]
[354549293,1740570651322,-500.0,0.00041095,14]
[354549294,1740570651331,-2657.44,0.00041095,14]
[354549295,1740570651340,-668.39,0.00041095,14]
[354549296,1740570651350,-150.0,0.00041095,14]
[354549297,1740570651359,-920.21,0.00041095,14]
[354549298,1740570651370,-500.0,0.00041095,14]
[354549299,1740570651379,-500.0,0.00041095,14]
[354549300,1740570651388,-500.0,0.00041095,14]
[354549301,1740570651399,-2049.26782745,0.00041095,14]
[354549302,1740570651864,-0.47217255,0.00041095,14]
[354549303,1740570651874,-1771.55,0.00041095,14]
[354549304,1740570651883,-501.48675754,0.00041095,7]
[354549305,1740570651892,-500.0,0.00041095,14]
[354549306,1740570651902,-1084.97,0.00041095,14]
[354549307,1740570651911,-939.02,0.00041095,14]
[354549308,1740570651920,-2440.97,0.00041095,14]
[354549309,1740570651929,-500.0,0.00041095,14]
[354549310,1740570651938,-613.69,0.00041095,14]
[354549311,1740570651947,-500.0,0.00041095,14]
[354549312,1740570651956,-5012.29268402,0.00041095,14]
[354549313,1740570651965,-500.0,0.00041095,14]
[354549314,1740570651975,-1632.66,0.00041095,14]
[354549315,1740570651984,-2377.57,0.00041095,14]
[354549316,1740570651994,-500.0,0.00041095,14]
[354549317,1740570652004,-831.74,0.00041095,14]
[354549318,1740570652013,-1176.39,0.00041095,14]
[354549319,1740570652269,-2204.87165928,0.00041095,14]
[354549320,1740570652915,-206.55834072,0.00041095,14]
[354549321,1740570652924,-98.21915928,0.00041095,14]
[354549322,1740570652944,-401.78084072,0.00041095,14]
[354549323,1740570652953,-500.0,0.00041095,14]
[354549324,1740570652963,-1000.0,0.00041095,120]
[354549325,1740570652974,-529.23,0.00041095,14]
[354549326,1740570652983,-500.0,0.00041095,14]
[354549327,1740570652992,-500.0,0.00041095,14]
[354549328,1740570653002,-500.0,0.00041095,14]
[354549329,1740570653011,-589.67,0.00041095,14]
[354549330,1740570653020,-500.0,0.00041095,14]
[354549331,1740570653030,-2038.9,0.00041095,14]
[354549332,1740570653039,-1614.74,0.00041095,14]
[354549333,1740570653050,-1231.43,0.00041095,14]
[354549334,1740570653059,-642.19,0.00041095,14]
[354549335,1740570653069,-500.0,0.00041095,14]
[354549336,1740570653078,-1699.25,0.00041095,14]
[354549337,1740570653087,-1465.34,0.00041095,14]
[354549338,1740570653096,-500.0,0.00041095,14]
[354549339,1740570653105,-503.53866244,0.00041095,14]
[354549340,1740570653114,-500.0,0.00041095,14]
[354549341,1740570653124,-508.40077973,0.00041095,14]
[354549342,1740570653133,-500.0,0.00041095,14]
[354549343,1740570653142,-224.6310781,0.00041095,14]
[354549344,1740570653151,-805.53,0.00041095,14]
[354549345,1740570653162,-1101.69,0.00041095,14]
[354549346,1740570653172,-2948.53,0.00041095,14]
[354549347,1740570653181,-1953.08,0.00041095,14]
[354549348,1740570653190,-500.0,0.00041095,14]
[354549349,1740570653199,-500.0,0.00041095,14]
[354549350,1740570653209,-693.2,0.00041095,14]
[354549351,1740570653219,-1164.49,0.00041095,14]
[354549352,1740570653228,-500.0,0.00041095,14]
[354549353,1740570653238,-1487.14,0.00041095,14]
[354549354,1740570653247,-500.0,0.00041095,14]
[354549355,1740570653258,-500.0,0.00041095,14]
[354549356,1740570653267,-500.0,0.00041095,14]
[354549357,1740570653277,-1647.01,0.00041095,14]
[354549358,1740570653286,-500.0,0.00041095,14]
[354549359,1740570653295,-500.0,0.00041095,14]
[354549360,1740570653304,-500.0,0.00041095,14]
[354549361,1740570653314,-502.16579518,0.00041095,14]
[354549362,1740570653327,-500.0,0.00041095,14]
[354549363,1740570653335,-713.38,0.00041095,14]
[354549364,1740570653345,-500.0,0.00041095,14]
[354549365,1740570653354,-500.0,0.00041095,14]
[354549366,1740570653365,-500.0,0.00041095,14]
[354549367,1740570653374,-330.60460115,0.00041095,14]
[354549368,1740570653383,-1066.77,0.00041095,14]
[354549369,1740570653394,-615.25998496,0.00041095,14]
[354549370,1740570653407,-500.0,0.00041095,14]
[354549371,1740570653417,-1369.98,0.00041095,14]
[354549372,1740570653427,-500.0,0.00041095,14]
[354549373,1740570653436,-502.49603223,0.00041095,14]
[354549374,1740570653445,-503.55205819,0.00041095,14]
[354549375,1740570653454,-2706.23,0.00041095,14]
[354549376,1740570653464,-502.27683239,0.00041095,14]
[354549377,1740570653475,-1641.89,0.00041095,14]
[354549378,1740570653485,-500.0,0.00041095,14]
[354549379,1740570653494,-500.0,0.00041095,14]
[354549380,1740570653504,-500.0,0.00041095,14]
[354549381,1740570653513,-2126.42,0.00041095,14]
[354549382,1740570653522,-500.0,0.00041095,14]
[354549383,1740570653531,-500.0,0.00041095,14]
[354549384,1740570653541,-500.0,0.00041095,14]
[354549385,1740570653550,-500.0,0.00041095,14]
[354549386,1740570653559,-500.0,0.00041095,14]
[354549387,1740570653569,-500.0,0.00041095,14]
[354549388,1740570653578,-500.0,0.00041095,14]
[354549389,1740570653587,-583.91,0.00041095,14]
[354549390,1740570653596,-1172.74,0.00041095,14]
[354549391,1740570653605,-500.0,0.00041095,14]
[354549392,1740570653614,-500.0,0.00041095,14]